Workbook

Sheet Wertung-Einzel
B2: Ergebnis: | C2: Einzel
B3: Veranstalter: | J3: =TODAY() -> 2025-02-20
B4: Disziplin :
E7: Rangliste (RL) wird nach dem Schnitt der 4 besten Wettkämpfe sortiert
A8: RL | B8: Name | C8: Verein | D8: S/E | E8: 1W | F8: 2W | G8: 3W | H8: 4W | I8: 5W | J8: Ges.-R. | K8: Ges.- Ø | L8: WK | M8: Ø 4WK
A9: 1 | B9: Werner Müller | C9: SCC Hub. Haag | D9: S | E9: 400 | F9: 400 | G9: 400 | H9: 400 | I9: 390 | J9: =IF(SUM(E9:I9)>0,SUM(E9:I9),"") -> 1990 | K9: =IF(J9="","",AVERAGE(E9:I9)) -> 398 | L9: =IF(J9="","",COUNT(E9:I9)-COUNTIF(E9:I9,"0")) -> 5 | M9: =IF(L9<4,0,IF(ISERROR(AVERAGE(LARGE(E9:I9,{1,2,3,4}))),"",AVERAGE(LARGE(E9:I9,{1,2,3,4})))) -> 400
A10: =IF(L10="","",IF(L10<4,"",IF(ROUND(M10,5)=ROUND(M9,5),"",ROW()-8))) -> 2 | B10: Marina Lose | C10: SSV Dreis | D10: S | E10: 399 | F10: 400 | G10: 398 | H10: 399 | I10: 387 | J10: =IF(SUM(E10:I10)>0,SUM(E10:I10),"") -> 1983 | K10: =IF(J10="","",AVERAGE(E10:I10)) -> 396.6 | L10: =IF(J10="","",COUNT(E10:I10)-COUNTIF(E10:I10,"0")) -> 5 | M10: =IF(L10<4,0,IF(ISERROR(AVERAGE(LARGE(E10:I10,{1,2,3,4}))),"",AVERAGE(LARGE(E10:I10,{1,2,3,4})))) -> 399
A11: =IF(L11="","",IF(L11<4,"",IF(ROUND(M11,5)=ROUND(M10,5),"",ROW()-8))) -> 3 | B11: Arno Groß | C11: SCC Hub. Haag | D11: S | E11: 389 | F11: 388 | G11: 400 | H11: 399 | I11: 390 | J11: =IF(SUM(E11:I11)>0,SUM(E11:I11),"") -> 1966 | K11: =IF(J11="","",AVERAGE(E11:I11)) -> 393.2 | L11: =IF(J11="","",COUNT(E11:I11)-COUNTIF(E11:I11,"0")) -> 5 | M11: =IF(L11<4,0,IF(ISERROR(AVERAGE(LARGE(E11:I11,{1,2,3,4}))),"",AVERAGE(LARGE(E11:I11,{1,2,3,4})))) -> 394.5
A12: 4 | B12: Klaus Grau | C12: BSV Osann-Monzel | D12: S | E12: 392 | G12: 393 | H12: 394 | I12: 398 | J12: =IF(SUM(E12:I12)>0,SUM(E12:I12),"") -> 1577 | K12: =IF(J12="","",AVERAGE(E12:I12)) -> 394.25 | L12: =IF(J12="","",COUNT(E12:I12)-COUNTIF(E12:I12,"0")) -> 4 | M12: =IF(L12<4,0,IF(ISERROR(AVERAGE(LARGE(E12:I12,{1,2,3,4}))),"",AVERAGE(LARGE(E12:I12,{1,2,3,4})))) -> 394.25
A13: 5 | B13: Ulrike Lose | C13: St.Seb.Schbr. Brauneberg | D13: S | E13: 390 | F13: 391 | G13: 392 | H13: 398 | I13: 395 | J13: =IF(SUM(E13:I13)>0,SUM(E13:I13),"") -> 1966 | K13: =IF(J13="","",AVERAGE(E13:I13)) -> 393.2 | L13: =IF(J13="","",COUNT(E13:I13)-COUNTIF(E13:I13,"0")) -> 5 | M13: =IF(L13<4,0,IF(ISERROR(AVERAGE(LARGE(E13:I13,{1,2,3,4}))),"",AVERAGE(LARGE(E13:I13,{1,2,3,4})))) -> 394
A14: 6 | B14: Uli Grün | C14: SVM Zeltingen | D14: S | E14: 389 | F14: 390 | H14: 395 | I14: 399 | J14: =IF(SUM(E14:I14)>0,SUM(E14:I14),"") -> 1573 | K14: =IF(J14="","",AVERAGE(E14:I14)) -> 393.25 | L14: =IF(J14="","",COUNT(E14:I14)-COUNTIF(E14:I14,"0")) -> 4 | M14: =IF(L14<4,0,IF(ISERROR(AVERAGE(LARGE(E14:I14,{1,2,3,4}))),"",AVERAGE(LARGE(E14:I14,{1,2,3,4})))) -> 393.25
A15: 7 | B15: Ernst Küfer | C15: SVM Zeltingen | D15: S | E15: 391 | F15: 394 | G15: 389 | H15: 393 | I15: 394 | J15: =IF(SUM(E15:I15)>0,SUM(E15:I15),"") -> 1961 | K15: =IF(J15="","",AVERAGE(E15:I15)) -> 392.2 | L15: =IF(J15="","",COUNT(E15:I15)-COUNTIF(E15:I15,"0")) -> 5 | M15: =IF(L15<4,0,IF(ISERROR(AVERAGE(LARGE(E15:I15,{1,2,3,4}))),"",AVERAGE(LARGE(E15:I15,{1,2,3,4})))) -> 393
A16: 8 | B16: Horst Schall | C16: SCC Hub. Haag | D16: S | E16: 392 | F16: 394 | G16: 389 | H16: 392 | I16: 393 | J16: =IF(SUM(E16:I16)>0,SUM(E16:I16),"") -> 1960 | K16: =IF(J16="","",AVERAGE(E16:I16)) -> 392 | L16: =IF(J16="","",COUNT(E16:I16)-COUNTIF(E16:I16,"0")) -> 5 | M16: =IF(L16<4,0,IF(ISERROR(AVERAGE(LARGE(E16:I16,{1,2,3,4}))),"",AVERAGE(LARGE(E16:I16,{1,2,3,4})))) -> 392.75
A17: 9 | B17: Manfred Maler | C17: SCC Hub. Haag | D17: S | E17: 393 | F17: 390 | G17: 377 | H17: 389 | I17: 388 | J17: =IF(SUM(E17:I17)>0,SUM(E17:I17),"") -> 1937 | K17: =IF(J17="","",AVERAGE(E17:I17)) -> 387.4 | L17: =IF(J17="","",COUNT(E17:I17)-COUNTIF(E17:I17,"0")) -> 5 | M17: =IF(L17<4,0,IF(ISERROR(AVERAGE(LARGE(E17:I17,{1,2,3,4}))),"",AVERAGE(LARGE(E17:I17,{1,2,3,4})))) -> 390
A18: 10 | B18: Kathrin Feste | C18: BSV Osann-Monzel | D18: S | E18: 380 | F18: 389 | G18: 388 | H18: 390 | I18: 392 | J18: =IF(SUM(E18:I18)>0,SUM(E18:I18),"") -> 1939 | K18: =IF(J18="","",AVERAGE(E18:I18)) -> 387.8 | L18: =IF(J18="","",COUNT(E18:I18)-COUNTIF(E18:I18,"0")) -> 5 | M18: =IF(L18<4,0,IF(ISERROR(AVERAGE(LARGE(E18:I18,{1,2,3,4}))),"",AVERAGE(LARGE(E18:I18,{1,2,3,4})))) -> 389.75
A19: 11 | B19: Otto Richter | C19: SCC Hub. Haag | D19: S | E19: 393 | F19: 389 | G19: 369 | H19: 387 | I19: 383 | J19: =IF(SUM(E19:I19)>0,SUM(E19:I19),"") -> 1921 | K19: =IF(J19="","",AVERAGE(E19:I19)) -> 384.2 | L19: =IF(J19="","",COUNT(E19:I19)-COUNTIF(E19:I19,"0")) -> 5 | M19: =IF(L19<4,0,IF(ISERROR(AVERAGE(LARGE(E19:I19,{1,2,3,4}))),"",AVERAGE(LARGE(E19:I19,{1,2,3,4})))) -> 388
A20: 12 | B20: Achim Klein | C20: SVM Zeltingen | D20: S | E20: 369 | F20: 399 | G20: 374 | H20: 389 | I20: 388 | J20: =IF(SUM(E20:I20)>0,SUM(E20:I20),"") -> 1919 | K20: =IF(J20="","",AVERAGE(E20:I20)) -> 383.8 | L20: =IF(J20="","",COUNT(E20:I20)-COUNTIF(E20:I20,"0")) -> 5 | M20: =IF(L20<4,0,IF(ISERROR(AVERAGE(LARGE(E20:I20,{1,2,3,4}))),"",AVERAGE(LARGE(E20:I20,{1,2,3,4})))) -> 387.5
A21: 13 | B21: Gina Blau | C21: BSV Osann-Monzel | D21: S | E21: 377 | F21: 356 | G21: 393 | H21: 388 | I21: 388 | J21: =IF(SUM(E21:I21)>0,SUM(E21:I21),"") -> 1902 | K21: =IF(J21="","",AVERAGE(E21:I21)) -> 380.4 | L21: =IF(J21="","",COUNT(E21:I21)-COUNTIF(E21:I21,"0")) -> 5 | M21: =IF(L21<4,0,IF(ISERROR(AVERAGE(LARGE(E21:I21,{1,2,3,4}))),"",AVERAGE(LARGE(E21:I21,{1,2,3,4})))) -> 386.5
A22: 14 | B22: Ernst Schwarz | C22: BSV Osann-Monzel | D22: S | E22: 389 | F22: 377 | G22: 399 | H22: 374 | I22: 379 | J22: =IF(SUM(E22:I22)>0,SUM(E22:I22),"") -> 1918 | K22: =IF(J22="","",AVERAGE(E22:I22)) -> 383.6 | L22: =IF(J22="","",COUNT(E22:I22)-COUNTIF(E22:I22,"0")) -> 5 | M22: =IF(L22<4,0,IF(ISERROR(AVERAGE(LARGE(E22:I22,{1,2,3,4}))),"",AVERAGE(LARGE(E22:I22,{1,2,3,4})))) -> 386
A23: 15 | B23: Georg Schreiber | C23: SVM Zeltingen | D23: S | E23: 389 | F23: 388 | G23: 387 | H23: 370 | I23: 378 | J23: =IF(SUM(E23:I23)>0,SUM(E23:I23),"") -> 1912 | K23: =IF(J23="","",AVERAGE(E23:I23)) -> 382.4 | L23: =IF(J23="","",COUNT(E23:I23)-COUNTIF(E23:I23,"0")) -> 5 | M23: =IF(L23<4,0,IF(ISERROR(AVERAGE(LARGE(E23:I23,{1,2,3,4}))),"",AVERAGE(LARGE(E23:I23,{1,2,3,4})))) -> 385.5
B24: Paul Grob | C24: St.Seb.Schbr. Brauneberg | D24: S | E24: 377 | F24: 377 | G24: 399 | H24: 389 | I24: 374 | J24: =IF(SUM(E24:I24)>0,SUM(E24:I24),"") -> 1916 | K24: =IF(J24="","",AVERAGE(E24:I24)) -> 383.2 | L24: =IF(J24="","",COUNT(E24:I24)-COUNTIF(E24:I24,"0")) -> 5 | M24: =IF(L24<4,0,IF(ISERROR(AVERAGE(LARGE(E24:I24,{1,2,3,4}))),"",AVERAGE(LARGE(E24:I24,{1,2,3,4})))) -> 385.5
A25: 17 | B25: Elke Schreiner | C25: SG Wittlich | D25: S | E25: 376 | F25: 387 | G25: 366 | H25: 388 | I25: 390 | J25: =IF(SUM(E25:I25)>0,SUM(E25:I25),"") -> 1907 | K25: =IF(J25="","",AVERAGE(E25:I25)) -> 381.4 | L25: =IF(J25="","",COUNT(E25:I25)-COUNTIF(E25:I25,"0")) -> 5 | M25: =IF(L25<4,0,IF(ISERROR(AVERAGE(LARGE(E25:I25,{1,2,3,4}))),"",AVERAGE(LARGE(E25:I25,{1,2,3,4})))) -> 385.25
A26: 18 | B26: Kalle Fritzen | C26: SG Wittlich | D26: S | E26: 377 | F26: 388 | G26: 369 | H26: 390 | I26: 385 | J26: =IF(SUM(E26:I26)>0,SUM(E26:I26),"") -> 1909 | K26: =IF(J26="","",AVERAGE(E26:I26)) -> 381.8 | L26: =IF(J26="","",COUNT(E26:I26)-COUNTIF(E26:I26,"0")) -> 5 | M26: =IF(L26<4,0,IF(ISERROR(AVERAGE(LARGE(E26:I26,{1,2,3,4}))),"",AVERAGE(LARGE(E26:I26,{1,2,3,4})))) -> 385
A27: 19 | B27: Anna Jung | C27: St.Seb.Schbr. Brauneberg | D27: S | E27: 393 | F27: 389 | G27: 377 | H27: 377 | I27: 377 | J27: =IF(SUM(E27:I27)>0,SUM(E27:I27),"") -> 1913 | K27: =IF(J27="","",AVERAGE(E27:I27)) -> 382.6 | L27: =IF(J27="","",COUNT(E27:I27)-COUNTIF(E27:I27,"0")) -> 5 | M27: =IF(L27<4,0,IF(ISERROR(AVERAGE(LARGE(E27:I27,{1,2,3,4}))),"",AVERAGE(LARGE(E27:I27,{1,2,3,4})))) -> 384
A28: 20 | B28: Manfred Maurer | C28: SG Wittlich | D28: S | E28: 366 | F28: 387 | G28: 356 | H28: 391 | I28: 389 | J28: =IF(SUM(E28:I28)>0,SUM(E28:I28),"") -> 1889 | K28: =IF(J28="","",AVERAGE(E28:I28)) -> 377.8 | L28: =IF(J28="","",COUNT(E28:I28)-COUNTIF(E28:I28,"0")) -> 5 | M28: =IF(L28<4,0,IF(ISERROR(AVERAGE(LARGE(E28:I28,{1,2,3,4}))),"",AVERAGE(LARGE(E28:I28,{1,2,3,4})))) -> 383.25
A29: 21 | B29: Elfriede Riss | C29: St.Seb.Schbr. Brauneberg | D29: S | E29: 393 | F29: 377 | G29: 376 | H29: 383 | I29: 376 | J29: =IF(SUM(E29:I29)>0,SUM(E29:I29),"") -> 1905 | K29: =IF(J29="","",AVERAGE(E29:I29)) -> 381 | L29: =IF(J29="","",COUNT(E29:I29)-COUNTIF(E29:I29,"0")) -> 5 | M29: =IF(L29<4,0,IF(ISERROR(AVERAGE(LARGE(E29:I29,{1,2,3,4}))),"",AVERAGE(LARGE(E29:I29,{1,2,3,4})))) -> 382.25
A30: 22 | B30: Markus Glaser | C30: SVM Zeltingen | D30: S | E30: 367 | F30: 378 | G30: 369 | H30: 390 | I30: 390 | J30: =IF(SUM(E30:I30)>0,SUM(E30:I30),"") -> 1894 | K30: =IF(J30="","",AVERAGE(E30:I30)) -> 378.8 | L30: =IF(J30="","",COUNT(E30:I30)-COUNTIF(E30:I30,"0")) -> 5 | M30: =IF(L30<4,0,IF(ISERROR(AVERAGE(LARGE(E30:I30,{1,2,3,4}))),"",AVERAGE(LARGE(E30:I30,{1,2,3,4})))) -> 381.75
A31: 23 | B31: Rudi Winzer | C31: SG Wittlich | D31: S | E31: 378 | F31: 367 | G31: 384 | H31: 377 | I31: 379 | J31: =IF(SUM(E31:I31)>0,SUM(E31:I31),"") -> 1885 | K31: =IF(J31="","",AVERAGE(E31:I31)) -> 377 | L31: =IF(J31="","",COUNT(E31:I31)-COUNTIF(E31:I31,"0")) -> 5 | M31: =IF(L31<4,0,IF(ISERROR(AVERAGE(LARGE(E31:I31,{1,2,3,4}))),"",AVERAGE(LARGE(E31:I31,{1,2,3,4})))) -> 379.5
A32: 24 | B32: Alois Hupe | C32: SSV Dreis | D32: S | E32: 376 | F32: 367 | G32: 349 | H32: 378 | I32: 379 | J32: =IF(SUM(E32:I32)>0,SUM(E32:I32),"") -> 1849 | K32: =IF(J32="","",AVERAGE(E32:I32)) -> 369.8 | L32: =IF(J32="","",COUNT(E32:I32)-COUNTIF(E32:I32,"0")) -> 5 | M32: =IF(L32<4,0,IF(ISERROR(AVERAGE(LARGE(E32:I32,{1,2,3,4}))),"",AVERAGE(LARGE(E32:I32,{1,2,3,4})))) -> 375
A33: 25 | B33: Hans Schelle | C33: SSV Dreis | D33: S | E33: 345 | F33: 367 | G33: 376 | H33: 340 | I33: 377 | J33: =IF(SUM(E33:I33)>0,SUM(E33:I33),"") -> 1805 | K33: =IF(J33="","",AVERAGE(E33:I33)) -> 361 | L33: =IF(J33="","",COUNT(E33:I33)-COUNTIF(E33:I33,"0")) -> 5 | M33: =IF(L33<4,0,IF(ISERROR(AVERAGE(LARGE(E33:I33,{1,2,3,4}))),"",AVERAGE(LARGE(E33:I33,{1,2,3,4})))) -> 366.25
A34: 26 | B34: Kurt Klingel | C34: SSV Dreis | D34: S | E34: 356 | F34: 358 | G34: 359 | H34: 367 | I34: 378 | J34: =IF(SUM(E34:I34)>0,SUM(E34:I34),"") -> 1818 | K34: =IF(J34="","",AVERAGE(E34:I34)) -> 363.6 | L34: =IF(J34="","",COUNT(E34:I34)-COUNTIF(E34:I34,"0")) -> 5 | M34: =IF(L34<4,0,IF(ISERROR(AVERAGE(LARGE(E34:I34,{1,2,3,4}))),"",AVERAGE(LARGE(E34:I34,{1,2,3,4})))) -> 365.5
A35: 27 | B35: Fred Glocke | C35: SSV Dreis | D35: S | E35: 380 | F35: 350 | G35: 349 | H35: 368 | I35: 356 | J35: =IF(SUM(E35:I35)>0,SUM(E35:I35),"") -> 1803 | K35: =IF(J35="","",AVERAGE(E35:I35)) -> 360.6 | L35: =IF(J35="","",COUNT(E35:I35)-COUNTIF(E35:I35,"0")) -> 5 | M35: =IF(L35<4,0,IF(ISERROR(AVERAGE(LARGE(E35:I35,{1,2,3,4}))),"",AVERAGE(LARGE(E35:I35,{1,2,3,4})))) -> 363.5
B36: Oswald Glatt | C36: St.Seb.Schbr. Brauneberg | D36: S | E36: 393 | F36: 389 | H36: 379 | J36: =IF(SUM(E36:I36)>0,SUM(E36:I36),"") -> 1161 | K36: =IF(J36="","",AVERAGE(E36:I36)) -> 387 | L36: =IF(J36="","",COUNT(E36:I36)-COUNTIF(E36:I36,"0")) -> 3 | M36: =IF(L36<4,0,IF(ISERROR(AVERAGE(LARGE(E36:I36,{1,2,3,4}))),"",AVERAGE(LARGE(E36:I36,{1,2,3,4})))) -> 0
B37: Heike Braun | C37: BSV Osann-Monzel | D37: S | E37: 386 | G37: 388 | J37: =IF(SUM(E37:I37)>0,SUM(E37:I37),"") -> 774 | K37: =IF(J37="","",AVERAGE(E37:I37)) -> 387 | L37: =IF(J37="","",COUNT(E37:I37)-COUNTIF(E37:I37,"0")) -> 2 | M37: =IF(L37<4,0,IF(ISERROR(AVERAGE(LARGE(E37:I37,{1,2,3,4}))),"",AVERAGE(LARGE(E37:I37,{1,2,3,4})))) -> 0
B38: Fritz Bauer | C38: SG Wittlich | D38: S | E38: 387 | J38: =IF(SUM(E38:I38)>0,SUM(E38:I38),"") -> 387 | K38: =IF(J38="","",AVERAGE(E38:I38)) -> 387 | L38: =IF(J38="","",COUNT(E38:I38)-COUNTIF(E38:I38,"0")) -> 1 | M38: =IF(L38<4,0,IF(ISERROR(AVERAGE(LARGE(E38:I38,{1,2,3,4}))),"",AVERAGE(LARGE(E38:I38,{1,2,3,4})))) -> 0
J39: =IF(SUM(E39:I39)>0,SUM(E39:I39),"") ->  | K39: =IF(J39="","",AVERAGE(E39:I39)) ->  | L39: =IF(J39="","",COUNT(E39:I39)-COUNTIF(E39:I39,"0")) ->  | M39: =IF(L39<4,0,IF(ISERROR(AVERAGE(LARGE(E39:I39,{1,2,3,4}))),"",AVERAGE(LARGE(E39:I39,{1,2,3,4})))) -> 
M40: =IF(L40<4,0,IF(ISERROR(AVERAGE(LARGE(E40:I40,{1,2,3,4}))),"",AVERAGE(LARGE(E40:I40,{1,2,3,4})))) -> 
M41: =IF(L41<4,0,IF(ISERROR(AVERAGE(LARGE(E41:I41,{1,2,3,4}))),"",AVERAGE(LARGE(E41:I41,{1,2,3,4})))) -> 
M42: =IF(L42<4,0,IF(ISERROR(AVERAGE(LARGE(E42:I42,{1,2,3,4}))),"",AVERAGE(LARGE(E42:I42,{1,2,3,4})))) -> 
M43: =IF(L43<4,0,IF(ISERROR(AVERAGE(LARGE(E43:I43,{1,2,3,4}))),"",AVERAGE(LARGE(E43:I43,{1,2,3,4})))) -> 
M44: =IF(L44<4,0,IF(ISERROR(AVERAGE(LARGE(E44:I44,{1,2,3,4}))),"",AVERAGE(LARGE(E44:I44,{1,2,3,4})))) -> 
M45: =IF(L45<4,0,IF(ISERROR(AVERAGE(LARGE(E45:I45,{1,2,3,4}))),"",AVERAGE(LARGE(E45:I45,{1,2,3,4})))) -> 
M46: =IF(L46<4,0,IF(ISERROR(AVERAGE(LARGE(E46:I46,{1,2,3,4}))),"",AVERAGE(LARGE(E46:I46,{1,2,3,4})))) -> 
M47: =IF(L47<4,0,IF(ISERROR(AVERAGE(LARGE(E47:I47,{1,2,3,4}))),"",AVERAGE(LARGE(E47:I47,{1,2,3,4})))) -> 
M48: =IF(L48<4,0,IF(ISERROR(AVERAGE(LARGE(E48:I48,{1,2,3,4}))),"",AVERAGE(LARGE(E48:I48,{1,2,3,4})))) -> 
M49: =IF(L49<4,0,IF(ISERROR(AVERAGE(LARGE(E49:I49,{1,2,3,4}))),"",AVERAGE(LARGE(E49:I49,{1,2,3,4})))) -> 
M50: =IF(L50<4,0,IF(ISERROR(AVERAGE(LARGE(E50:I50,{1,2,3,4}))),"",AVERAGE(LARGE(E50:I50,{1,2,3,4})))) -> 

Sheet Grafik (hidden)
